Workbook

Sheet Instrucciones
B2: Ingresa tus datos
B20: Si requieres cotizar a más integrantes de la póliza , selecciona primero el número de integrantes aquí
B48: Selecciona la suma asegurada que desees cotizar
B65: Y para finalizar imprime

Sheet Datos Asegurado
A2: Cotización | H2: 2. Integrantes adicionales a cotizar
A4: 1. Ingrese los datos del asegurado
H5: Número | I5: Relación | J5: Género | K5: Edad
B6: Fecha Cotización: | C6: =TODAY() -> 2022-01-19
B7: Nombre del titular: | C7: Usuario
B8: Edad del titular: | C8: 45
B9: Género: | C9: Femenino
B11: Número de integrantes adicionales a cotizar: | C11: 0
A14: 3. Datos del agente
B16: Nombre del agente: | C16: Maria
B17: Agencia: | C17: Bupa Mex
A20: 4. Datos de la póliza
E21: $ 1,000,000 MNX
A22: Tipo de cliente: | B22: Nuevo negocio | E22: $ 2,000,000 MNX
E23: $ 3,000,000 MNX
C24: Asistencia en el extranjero: | D24: No | E24: $ 5,000,000 MNX
C25: Deducible: | D25: 10000
A26: Suma asegurada (mxn): | B26: $ 1,000,000 MNX | C26: Coaseguro: | D26: 0.2
C27: Zona: | D27: Zona 1: CDMX, Area Metropolitana y Monterrey
B29: Te recordamos que contamos con la promoción de eliminación el deducible y coaseguro de por vida del Plan Bupa Nacional Vital para contrataciones desde el 18 de enero hasta el 30 de junio del 2022.
A30: =+B26 -> $ 1,000,000 MNX | B30: =VLOOKUP($A$30,máster!$F$78:$G$81,2,0) -> 1M
A31: Suma asegurada | B31: Concepto | C31: Anual | D31: Semestral | E31: Trimestral | F31: Mensual | H31: 5. Imprime
A32: =+A30 -> $ 1,000,000 MNX | B32: Prima del asegurado titular: | C32: =IF(máster!J51<>0,máster!J51-C37,0) -> 23781 | D32: =IF(C32<>0,(C32-máster!O20)*1.045+máster!O20,0) -> 24851.145 | E32: =IF(C32<>0,(C32-máster!O20)*1.075+máster!O20,0) -> 25564.575 | F32: =IF(C32<>0,(C32-máster!O20)*1.11+máster!O20,0) -> 26396.91
B33: Prima cónyuge: | C33: =IF(máster!J52<>0,máster!J52-C37,0) -> 0 | D33: =IF($C$33<>0,($C$33-(máster!O20*máster!$N$32))*1.045+(máster!O20*máster!$N$32),0) -> 0 | E33: =IF($C$33<>0,($C$33-(máster!O20*máster!$N$32))*1.075+(máster!O20*máster!$N$32),0) -> 0 | F33: =IF($C$33<>0,($C$33-(máster!O20*máster!$N$32))*1.11+(máster!O20*máster!$N$32),0) -> 0
B34: Prima hijo(s): | C34: =IF(máster!J53<>0,máster!J53-C37,0) -> 0 | D34: =IF($C$34<>0,($C$34-(máster!O20*máster!$N$22))*1.045+(máster!O20*máster!$N$22),0) -> 0 | E34: =IF($C$34<>0,($C$34-(máster!O20*máster!$N$22))*1.075+(máster!O20*máster!$N$22),0) -> 0 | F34: =IF($C$34<>0,($C$34-(máster!O20*máster!$N$22))*1.11+(máster!O20*máster!$N$22),0) -> 0
B35: Dependientes económicos | C35: =IF(máster!J54<>0,máster!J54-C37,0) -> 0 | D35: =IF($C$35<>0,($C$35-(máster!O20*máster!$N$42))*1.045+(máster!O20*máster!$N$42),0) -> 0 | E35: =IF($C$35<>0,($C$35-(máster!O20*máster!$N$42))*1.075+(máster!O20*máster!$N$42),0) -> 0 | F35: =IF($C$35<>0,($C$35-(máster!O20*máster!$N$42))*1.11+(máster!O20*máster!$N$42),0) -> 0
B36: Total Prima: | C36: =SUM(C32:C35)+C37 -> 23781 | D36: =($C$36-(máster!O20*(máster!$N$22+máster!$N$32+máster!$N$42+1))) * 1.045 + (máster!O20*(máster!$N$22+máster!$N$32+máster!$N$42+1)) -> 24851.145 | E36: =($C$36-(máster!O20*(máster!$N$22+máster!$N$32+máster!$N$42+1))) * 1.075 + (máster!O20*(máster!$N$22+máster!$N$32+máster!$N$42+1)) -> 25564.575 | F36: =($C$36-(máster!O20*(máster!$N$22+máster!$N$32+máster!$N$42+1))) * 1.11 + (máster!O20*(máster!$N$22+máster!$N$32+máster!$N$42+1)) -> 26396.91
B37: Asistencia en el extranjero: | C37: =máster!J56 -> 0 | D37: =IF($D$24="Si",Master!$AO$2,0) -> 0 | E37: =IF($D$24="Si",Master!$AO$2,0) -> 0 | F37: =IF($D$24="Si",Master!$AO$2,0) -> 0
B38: Derecho de póliza: | C38: =máster!J57 -> 1500 | D38: =+máster!K57 -> 1500 | E38: =+máster!L57 -> 1500 | F38: =+máster!M57 -> 1500
B39: Total descuento (derecho de póliza y recargo por pago fraccionado) | C39: -1500 | D39: =-1500-($C$36 -(máster!O20*(máster!$N$22+máster!$N$32+máster!$N$42+1)))*0.045 -> -2570.145 | E39: =-1500-($C$36 - (máster!O20*(máster!$N$22+máster!$N$32+máster!$N$42+1)))*0.075 -> -3283.575 | F39: =-1500-($C$36 - (máster!O20*(máster!$N$22+máster!$N$32+máster!$N$42+1)))*0.11 -> -4115.91
B40: IVA (16%) | C40: =(C36+C38+C39)*16% -> 3804.96 | D40: =(D36/2+D38+D39)*16% -> 1816.8684 | E40: =(E36/4+E38+E39)*16% -> 737.211 | F40: =(F36/12+F38+F39)*16% -> -66.5868
B41: Costo Total: | C41: =C36+C38+C39+C40 -> 27585.96 | D41: =(D36+D38+D39)*1.16 -> 27585.96 | E41: =(E36+E38+E39)*1.16 -> 27585.96 | F41: 27585.96
B42: Primer Pago: | C42: =C36+C38+C39+C40 -> 27585.96 | D42: =(D36/2-(($C$36 - (máster!O20*(máster!$N$22+máster!$N$32+máster!$N$42+1)))*0.045)/2)*1.16 -> 13792.98 | E42: =(E36/4-(($C$36 - (máster!O20*(máster!$N$22+máster!$N$32+máster!$N$42+1)))*0.075)/4)*1.16 -> 6896.49 | F42: =(F36/12-(($C$36 - (máster!O20*(máster!$N$22+máster!$N$32+máster!$N$42+1)))*0.11)/12)*1.16 -> 2298.83
B43: Pagos Subsecuentes: | C43: =+máster!J60 -> 0 | D43: =(D36/2-(($C$36 - (máster!O20*(máster!$N$22+máster!$N$32+máster!$N$42+1)))*0.045)/2)*1.16 -> 13792.98 | E43: =(E36/4-(($C$36 - (máster!O20*(máster!$N$22+máster!$N$32+máster!$N$42+1)))*0.075)/4)*1.16 -> 6896.49 | F43: =(F36/12-(($C$36 - (máster!O20*(máster!$N$22+máster!$N$32+máster!$N$42+1)))*0.11)/12)*1.16 -> 2298.83

Sheet máster (hidden)
A1: Bupa Nacional Vital Individual
A2: Prima en Pesos Mexicanos | Y2: Zonas | AB2: Coaseguro | AC2: Deducible
B3: Z1 | C3: Z2 | Y3: Zona 1: CDMX, Area Metropolitana y Monterrey | Z3: =IF('Datos Asegurado'!D25=0,4,2) -> 2 | AB3: 0.2 | AC3: 10000
A4: Deducible | B4: 10000 | C4: 10000 | D4: 0 | Y4: Zona 2: Republica mexicana, excepto CDMX, Area Metropolitana y Monterrey | Z4: =IF('Datos Asegurado'!D25=0,4,3) -> 3
A5: Coaseguro | B5: 20 | C5: 20 | D5: 0
A6: Edad | B6: Prima de Tarifa | C6: Prima de tarifa | D6: Prima de tarifa | H6: =+'Datos Asegurado'!B30 -> 1M | I6: % de recargo | J6: 0 | K6: 0.045 | L6: 0.075 | M6: 0.11
A7: 01M | B7: 9814 | C7: 9814 | D7: 12919.61602 | F7: Concepto | G7: Edad | H7: Patrón de edad | I7: Prima (desde base) | J7: Anual | K7: Semestral | L7: Trimestral | M7: Mensual | S7: Familia
A8: 11M | B8: 8750 | C8: 8750 | D8: 11515.03933 | F8: Prima del asegurado (títular) | G8: =+'Datos Asegurado'!C8 -> 45 | H8: =CONCATENATE(G8,$H$6) -> 451M | I8: =VLOOKUP(H8,$A$7:$D$349,(VLOOKUP('Datos Asegurado'!D27,máster!Y3:Z4,2,0)),0)+J56 -> 23781 | J8: =$I$8*J6+$I$8+máster!O20 -> 23781 | K8: =$I$8*K6+$I$8+(250) -> 25101.145 | L8: =$I$8*L6+$I$8+(250) -> 25814.575 | M8: =$I$8*M6+$I$8+(250) -> 26646.91 | S8: 34 | T8: =+B299 -> 23631 | U8: 0.117
A9: 21M | B9: 7603 | C9: 7603 | D9: 9999.924481 | E9: 1 | F9: =+'Datos Asegurado'!I6 -> 0 | G9: =+'Datos Asegurado'!K6 -> 0 | H9: 01M | I9: =VLOOKUP(H9,$A$7:$D$349,(VLOOKUP('Datos Asegurado'!D27,máster!Y3:Z4,2,0)),0)+J56 -> 9814 | J9: =+$I$9*J6+$I$9 -> 9814 | K9: =+$I$9*K6+$I$9 -> 10255.63 | L9: 10550.05 | M9: =+$I$9*M6+$I$9 -> 10893.54 | S9: 46 | T9: =+B311 -> 32661 | U9: 0.075
A10: 31M | B10: 7108 | C10: 7108 | D10: 9346.069814 | E10: 2 | F10: =+'Datos Asegurado'!I7 -> 0 | G10: =+'Datos Asegurado'!K7 -> 0 | H10: 01M | I10: =VLOOKUP(H10,$A$7:$D$349,(VLOOKUP('Datos Asegurado'!D27,máster!Y3:Z4,2,0)),0) -> 9814 | J10: =+$I$10*J6+$I$10 -> 9814 | K10: =+$I$10*K6+$I$10 -> 10255.63 | L10: 10550.05 | M10: =+$I$10*M6+$I$10 -> 10893.54 | S10: 10 | T10: =+B275 -> 10464 | U10: 0.045
A11: 41M | B11: 6571 | C11: 6571 | D11: 8636.360178 | E11: 3 | F11: =+'Datos Asegurado'!I8 -> 0 | G11: =+'Datos Asegurado'!K8 -> 0 | H11: 01M | I11: =VLOOKUP(H11,$A$7:$D$349,(VLOOKUP('Datos Asegurado'!D27,máster!Y3:Z4,2,0)),0)+J56 -> 9814 | J11: =+$I$11*J6+$I$11 -> 9814 | K11: =+$I$11*K6+$I$11 -> 10255.63 | L11: 10550.05 | M11: =+$I$11*M6+$I$11 -> 10893.54 | S11: 5 | T11: =+B270 -> 8926 | U11: 0
A12: 51M | B12: 6780 | C12: 6780 | D12: 8913.291456 | E12: 4 | F12: =+'Datos Asegurado'!I9 -> 0 | G12: =+'Datos Asegurado'!K9 -> 0 | H12: 01M | I12: =VLOOKUP(H12,$A$7:$D$349,(VLOOKUP('Datos Asegurado'!D27,máster!Y3:Z4,2,0)),0)+J56 -> 9814 | J12: =+$I$12*J6+$I$12 -> 9814 | K12: =+$I$12*K6+$I$12 -> 10255.63 | L12: 10550.05 | M12: 10893.54 | S12: TOTAL | T12: =SUM(T8:T11) -> 75682
A13: 61M | B13: 6998 | C13: 6998 | D13: 9200.378183 | E13: 5 | F13: =+'Datos Asegurado'!I10 -> 0 | G13: =+'Datos Asegurado'!K10 -> 0 | H13: 01M | I13: =VLOOKUP(H13,$A$7:$D$349,(VLOOKUP('Datos Asegurado'!D27,máster!Y3:Z4,2,0)),0)+J56 -> 9814 | J13: =+$I$13*J6+$I$13 -> 9814 | K13: =+$I$13*K6+$I$13 -> 10255.63 | L13: 10550.05 | M13: =+$I$13*M6+$I$13 -> 10893.54 | S13: IVA | T13: 0.16
A14: 71M | B14: 7223 | C14: 7223 | D14: 9497.229764 | E14: 6 | F14: =+'Datos Asegurado'!I11 -> 0 | G14: =+'Datos Asegurado'!K11 -> 0 | H14: 01M | I14: =VLOOKUP(H14,$A$7:$D$349,(VLOOKUP('Datos Asegurado'!D27,máster!Y3:Z4,2,0)),0)+J56 -> 9814 | J14: =+$I$14*J6+$I$14 -> 9814 | K14: =+$I$14*K6+$I$14 -> 10255.63 | L14: 10550.05 | M14: =+$I$14*M6+$I$14 -> 10893.54 | T14: =+T12*T13 -> 12109.12
A15: 81M | B15: 7455 | C15: 7455 | D15: 9803.8462 | E15: 7 | F15: =+'Datos Asegurado'!I12 -> 0 | G15: =+'Datos Asegurado'!K12 -> 0 | H15: 01M | I15: =VLOOKUP(H15,$A$7:$D$349,(VLOOKUP('Datos Asegurado'!D27,máster!Y3:Z4,2,0)),0)+J56 -> 9814 | J15: =+$I$15*J6+$I$15 -> 9814 | K15: =+$I$15*K6+$I$15 -> 10255.63 | L15: 10550.05 | M15: 10893.54 | S15: derecho de poliza | T15: 500 | U15: x poliza (pendiente de revisar)solo una vez,primer recibo
A16: 91M | B16: 7695 | C16: 7695 | D16: 10121.39927 | E16: 8 | F16: =+'Datos Asegurado'!I13 -> 0 | G16: =+'Datos Asegurado'!K13 -> 0 | H16: 01M | I16: =VLOOKUP(H16,$A$7:$D$349,(VLOOKUP('Datos Asegurado'!D27,máster!Y3:Z4,2,0)),0)+J56 -> 9814 | J16: =+$I$16*J6+$I$16 -> 9814 | K16: =+$I$16*K6+$I$16 -> 10255.63 | L16: 10550.05 | M16: 10893.54 | S16: uso de la red | T16: 250 | U16: x asegurado
A17: 101M | B17: 7944 | C17: 7944 | D17: 10449.49839 | E17: 9 | F17: =+'Datos Asegurado'!I14 -> 0 | G17: =+'Datos Asegurado'!K14 -> 0 | H17: 01M | I17: =VLOOKUP(H17,$A$7:$D$349,(VLOOKUP('Datos Asegurado'!D27,máster!Y3:Z4,2,0)),0)+J56 -> 9814 | J17: =+$I$17*J6+$I$17 -> 9814 | K17: =+$I$17*K6+$I$17 -> 10255.63 | L17: =+$I$17*L6+$I$17 -> 10550.05 | M17: 10893.54
A18: 111M | B18: 8201 | C18: 8201 | D18: 10788.92474 | S18: total | T18: =+T12 -> 75682
A19: 121M | B19: 8467 | C19: 8467 | D19: 11140.06891 | T19: =+T15 -> 500 | V19: recargo porpagofracccionado
A20: 131M | B20: 8742 | C20: 8742 | D20: 11503.7121 | J20: 5 | K20: 6 | L20: 7 | M20: 8 | N20: uso de red | O20: 0 | T20: =+T16 -> 250 | V20: FORMAS DE PAGO | X20: mismos
A21: 141M | B21: 9026 | C21: 9026 | D21: 11879.07311 | F21: Hij@ | G21: 1 | J21: =IFERROR(VLOOKUP(F21,F9:M9,5,0),0) -> 0 | K21: =IFERROR(VLOOKUP(F21,F9:M9,6,0),0) -> 0 | L21: =IFERROR(VLOOKUP(F21,F9:M9,7,0),0) -> 0 | M21: =IFERROR(VLOOKUP(F21,F9:M9,8,0),0) -> 0 | N21: Hij@ | T21: =SUM(T18:T20) -> 76432 | V21: MENSUAL | W21: 0.117
A22: 151M | B22: 9320 | C22: 9320 | D22: 12267.32373 | F22: Hij@ | G22: 2 | J22: =IFERROR(VLOOKUP(F22,F10:M10,5,0),0) -> 0 | K22: =IFERROR(VLOOKUP(F22,F10:M10,6,0),0) -> 0 | L22: =IFERROR(VLOOKUP(F22,F10:M10,7,0),0) -> 0 | M22: =IFERROR(VLOOKUP(F22,F10:M10,8,0),0) -> 0 | N22: =COUNTIF(F9:F17,N21) -> 0 | O22: =(N22*$O$20) -> 0 | S22: 0.16 | T22: =+T21*S22 -> 12229.12 | V22: TRIMESTRAL | W22: 0.075
A23: 161M | B23: 9624 | C23: 9624 | D23: 12668.85455 | F23: Hij@ | G23: 3 | J23: 0 | K23: 0 | L23: 0 | M23: 0 | T23: =+T21+T22 -> 88661.12 | V23: SEMESTRAL | W23: 0.045
A24: 171M | B24: 9939 | C24: 9939 | D24: 13085.22795 | F24: Hij@ | G24: 4 | J24: 0 | K24: 0 | L24: 0 | M24: 0 | V24: ANUAL | W24: 0
A25: 181M | B25: 10226 | C25: 10226 | D25: 13463.90902 | F25: Hij@ | G25: 5 | J25: 0 | K25: 0 | L25: 0 | M25: 0
A26: 191M | B26: 10529 | C26: 10529 | D26: 13863.92629 | F26: Hij@ | G26: 6 | J26: 0 | K26: 0 | L26: 0 | M26: 0
A27: 201M | B27: 10841 | C27: 10841 | D27: 14275.94408 | F27: Hij@ | G27: 7 | J27: 0 | K27: 0 | L27: 0 | M27: 0
A28: 211M | B28: 11162 | C28: 11162 | D28: 14700.3224 | F28: Hij@ | G28: 8 | J28: 0 | K28: 0 | L28: 0 | M28: 0
A29: 221M | B29: 11493 | C29: 11493 | D29: 15137.43207 | F29: Hij@ | G29: 9 | J29: =IFERROR(VLOOKUP(F29,F17:M17,5,0),0) -> 0 | K29: 0 | L29: 0 | M29: 0
A30: 231M | B30: 11834 | C30: 11834 | D30: 15587.65503 | F30: Total de hijos | J30: =SUM(J21:J29) -> 0 | K30: =SUM(K21:K29) -> 0 | L30: 0 | M30: 0
A31: 241M | B31: 12185 | C31: 12185 | D31: 16051.38468 | F31: Cónyuge | G31: 1 | J31: =IFERROR(VLOOKUP(F31,F9:M9,5,0),0) -> 0 | K31: =IFERROR(VLOOKUP(F31,F9:M9,6,0),0) -> 0 | L31: =IFERROR(VLOOKUP(F31,F9:M9,7,0),0) -> 0 | M31: =IFERROR(VLOOKUP(F31,F9:M9,8,0),0) -> 0 | N31: Cónyuge
A32: 251M | B32: 12547 | C32: 12547 | D32: 16529.02622 | F32: Cónyuge | G32: 2 | J32: =IFERROR(VLOOKUP(F32,F10:M10,5,0),0) -> 0 | K32: =IFERROR(VLOOKUP(F32,F10:M10,6,0),0) -> 0 | L32: =IFERROR(VLOOKUP(F32,F10:M10,7,0),0) -> 0 | M32: =IFERROR(VLOOKUP(F32,F10:M10,8,0),0) -> 0 | N32: =COUNTIF(F9:F17,N31) -> 0 | O32: =(N32*$O$20) -> 0
A33: 261M | B33: 12919 | C33: 12919 | D33: 17020.99701 | F33: Cónyuge | G33: 3 | J33: 0 | K33: 0 | L33: 0 | M33: 0
A34: 271M | B34: 13303 | C34: 13303 | D34: 17527.72692 | F34: Cónyuge | G34: 4 | J34: 0 | K34: 0 | L34: 0 | M34: 0
A35: 281M | B35: 13698 | C35: 13698 | D35: 18049.65873 | F35: Cónyuge | G35: 5 | J35: 0 | K35: 0 | L35: 0 | M35: 0
A36: 291M | B36: 14105 | C36: 14105 | D36: 18587.24849 | F36: Cónyuge | G36: 6 | J36: 0 | K36: 0 | L36: 0 | M36: 0
A37: 301M | B37: 15918 | C37: 14525 | D37: 19140.96595 | F37: Cónyuge | G37: 7 | J37: 0 | K37: 0 | L37: 0 | M37: 0
A38: 311M | B38: 16391 | C38: 14956 | D38: 19711.29492 | F38: Cónyuge | G38: 8 | J38: 0 | K38: 0 | L38: 0 | M38: =IFERROR(VLOOKUP(F38,F16:M16,8,0),0) -> 0
A39: 321M | B39: 16879 | C39: 15401 | D39: 20298.73377 | F39: Cónyuge | G39: 9 | J39: 0 | K39: 0 | L39: 0 | M39: 0
A40: 331M | B40: 17382 | C40: 15859 | D40: 20903.79579 | F40: Total de conyuge | J40: =SUM(J31:J39) -> 0 | K40: =SUM(K31:K39) -> 0 | L40: =SUM(L31:L39) -> 0 | M40: =SUM(M31:M39) -> 0
A41: 341M | B41: 17899 | C41: 16331 | D41: 21527.00966 | F41: Dependiente económico | G41: 1 | J41: =IFERROR(VLOOKUP(F41,F9:M9,5,0),0) -> 0 | K41: =IFERROR(VLOOKUP(F41,F9:M9,6,0),0) -> 0 | L41: =IFERROR(VLOOKUP(F41,F9:M9,7,0),0) -> 0 | M41: =IFERROR(VLOOKUP(F41,F9:M9,8,0),0) -> 0 | N41: Dependiente económico
A42: 351M | B42: 18432 | C42: 16817 | D42: 22168.91995 | F42: Dependiente económico | G42: 2 | J42: =IFERROR(VLOOKUP(F42,F10:M10,5,0),0) -> 0 | K42: =IFERROR(VLOOKUP(F42,F10:M10,6,0),0) -> 0 | L42: =IFERROR(VLOOKUP(F42,F10:M10,7,0),0) -> 0 | M42: =IFERROR(VLOOKUP(F42,F10:M10,8,0),0) -> 0 | N42: =COUNTIF(F9:F17,N41) -> 0 | O42: =(N42*$O$20) -> 0
A43: 361M | B43: 18981 | C43: 17318 | D43: 22830.08755 | F43: Dependiente económico | G43: 3 | J43: 0 | K43: 0 | L43: 0 | M43: =IFERROR(VLOOKUP(F43,F11:M11,8,0),0) -> 0
A44: 371M | B44: 19547 | C44: 17834 | D44: 23511.09017 | F44: Dependiente económico | G44: 4 | J44: 0 | K44: 0 | L44: 0 | M44: 0
A45: 381M | B45: 20129 | C45: 18365 | D45: 24212.52288 | F45: Dependiente económico | G45: 5 | J45: 0 | K45: 0 | L45: 0 | M45: 0
A46: 391M | B46: 20729 | C46: 18912 | D46: 24934.99857 | F46: Dependiente económico | G46: 6 | J46: 0 | K46: 0 | L46: 0 | M46: 0
A47: 401M | B47: 19569 | C47: 19569 | D47: 25803.17352 | F47: Dependiente económico | G47: 7 | J47: 0 | K47: 0 | L47: 0 | M47: 0
A48: 411M | B48: 20347 | C48: 20347 | D48: 26830.10046 | F48: Dependiente económico | G48: 8 | J48: 0 | K48: 0 | L48: 0 | M48: 0
A49: 421M | B49: 21155 | C49: 21155 | D49: 27898.10447 | F49: Dependiente económico | G49: 9 | J49: 0 | K49: 0 | L49: 0 | M49: 0
A50: 431M | B50: 21996 | C50: 21996 | D50: 29008.82865 | F50: Total de dependiente económico | J50: =SUM(J41:J49) -> 0 | K50: =SUM(K41:K49) -> 0 | L50: =SUM(L41:L49) -> 0 | M50: =SUM(M41:M49) -> 0
A51: 441M | B51: 22871 | C51: 22871 | D51: 30163.9818 | F51: Prima del asegurado titular: | J51: =+J8 -> 23781 | K51: =+K8 -> 25101.145 | L51: =+L8 -> 25814.575 | M51: =+M8 -> 26646.91
A52: 451M | B52: 23781 | C52: 23781 | D52: 31365.34107 | F52: Prima cónyuge: | J52: =(J40+$O$32) -> 0 | K52: =(K40+$O$32) -> 0 | L52: =(L40+$O$32) -> 0 | M52: =(M40+$O$32) -> 0
A53: 461M | B53: 24727 | C53: 24727 | D53: 32614.75471 | F53: Prima hijo(s): | J53: =(J30+$O$22) -> 0 | K53: =(K30+$O$22) -> 0 | L53: =(L30+$O$22) -> 0 | M53: =(M30+$O$22) -> 0
A54: 471M | B54: 25710 | C54: 25710 | D54: 33914.1449 | F54: Dependientes económicos | J54: =(J50+$O$42) -> 0 | K54: =(K50+$O$42) -> 0 | L54: 0 | M54: 0
A55: 481M | B55: 26734 | C55: 26734 | D55: 35265.5107 | F55: Total Prima: | J55: =SUM(J51:J54) -> 23781 | K55: =SUM(K51:K54) -> 25101.145 | L55: =SUM(L51:L54) -> 25814.575 | M55: =SUM(M51:M54) -> 26646.91
A56: 491M | B56: 27798 | C56: 27798 | D56: 36670.93113 | F56: Asistencia en el extranjero: | J56: =IF('Datos Asegurado'!$D$24="Si",Master!$AO$2,0) -> 0 | K56: =IF('Datos Asegurado'!$D$24="Si",Master!$AO$2,0) -> 0 | L56: =IF('Datos Asegurado'!$D$24="Si",Master!$AO$2,0) -> 0 | M56: =IF('Datos Asegurado'!$D$24="Si",Master!$AO$2,0) -> 0
A57: 501M | B57: 28904 | C57: 28904 | D57: 38132.56837 | F57: Derecho de póliza: | J57: 1500 | K57: 1500 | L57: 1500 | M57: 1500
A58: 511M | B58: 30199 | C58: 30199 | D58: 39842.68395 | F58: IVA (16%) | J58: =(J55+J57)*16% -> 4044.96 | K58: =(K55/2+K57)*16% -> 2248.0916 | L58: =(L55/4+L57)*16% -> 1272.583 | M58: =(M55/12+M57)*16% -> 595.2921333
A59: 521M | B59: 31703 | C59: 31703 | D59: 41828.31815 | F59: Primer Pago: | J59: =J55+J57+J58 -> 29325.96 | K59: =((K55/2)+K57)*1.16 -> 16298.6641 | L59: =((L55/4)+L57)*1.16 -> 9226.22675 | M59: =((M55/12)+M57)*1.16 -> 4315.867967
A60: 531M | B60: 33281 | C60: 33281 | D60: 43913.23405 | F60: Pagos Subsecuentes: | J60: 0 | K60: =(K55/2*1.16) -> 14558.6641 | L60: =(L55/4*1.16) -> 7486.22675 | M60: =(M55/12*1.16) -> 2575.867967
A61: 541M | B61: 34939 | C61: 34939 | D61: 46102.39576
A62: 551M | B62: 36679 | C62: 36679 | D62: 48401.01554
A63: 561M | B63: 38507 | C63: 38507 | D63: 50814.56632
A64: 571M | B64: 40426 | C64: 40426 | D64: 53348.79464
A65: 581M | B65: 42441 | C65: 42441 | D65: 56009.73437
A66: 591M | B66: 44556 | C66: 44556 | D66: 58803.72109
A67: 601M | B67: 51292 | C67: 46777 | D67: 61737.40714
A68: 611M | B68: 54106 | C68: 49343 | D68: 65125.81453
A69: 621M | B69: 57344 | C69: 52296 | D69: 69025.56341
A70: 631M | B70: 60777 | C70: 55426 | D70: 73159.29721
A71: 641M | B71: 64416 | C71: 58743 | D71: 77541.05504
A72: 651M | B72: 68273 | C72: 62260 | D72: 82185.71835
A73: 661M | B73: 72361 | C73: 65988 | D73: 87109.06145
A74: 671M | B74: 76695 | C74: 69940 | D74: 92327.80513 | F74: Cónyuge | G74: =COUNTIF('Datos Asegurado'!I6:I14,máster!F74) -> 0 | H74: =(G74*$G$77) -> 0
A75: 681M | B75: 81289 | C75: 74128 | D75: 97859.67344 | F75: Dependiente económico | G75: =COUNTIF('Datos Asegurado'!I7:I15,máster!F75) -> 0 | H75: =(G75*$G$77) -> 0
A76: 691M | B76: 86159 | C76: 78568 | D76: 103723.4538 | F76: Hij@ | G76: =COUNTIF('Datos Asegurado'!I8:I16,máster!F76) -> 0 | H76: =(G76*$G$77) -> 0
A77: 701M | B77: 91321 | C77: 83274 | D77: 109939.0611 | F77: Uso de red | G77: 0
A78: 711M | B78: 96792 | C78: 88263 | D78: 116527.6047 | F78: $ 1,000,000 MNX | G78: 1M
A79: 721M | B79: 102592 | C79: 93551 | D79: 123511.461 | F79: $ 2,000,000 MNX | G79: 2M
A80: 731M | B80: 108739 | C80: 99156 | D80: 130914.3487 | F80: $ 3,000,000 MNX | G80: 3M
A81: 741M | B81: 115256 | C81: 105098 | D81: 138761.4096 | F81: $ 5,000,000 MNX | G81: 5M
A82: 751M | B82: 122164 | C82: 111396 | D82: 147079.2942
A83: 761M | B83: 129486 | C83: 118072 | D83: 155896.2518
A84: 771M | B84: 137247 | C84: 125148 | D84: 165242.2269
A85: 781M | B85: 145474 | C85: 132649 | D85: 175148.9606
A86: 791M | B86: 154195 | C86: 140601 | D86: 185650.0982
A87: 801M | B87: 163438 | C87: 149029 | D87: 196781.3041
A88: 811M | B88: 173237 | C88: 157963 | D88: 208580.3823
A89: 821M | B89: 183623 | C89: 167433 | D89: 221087.4053
A90: 831M | B90: 194633 | C90: 177471 | D90: 234344.8496
A91: 841M | B91: 206303 | C91: 188111 | D91: 248397.7406
A93: 02M | B93: 11136 | C93: 11136 | D93: 14665.41677
A94: 12M | B94: 9927 | C94: 9927 | D94: 13069.11337
A95: 22M | B95: 8623 | C95: 8623 | D95: 11347.18319
A96: 32M | B96: 8061 | C96: 8061 | D96: 10604.07643
A97: 42M | B97: 7450 | C97: 7450 | D97: 9797.490425
A98: 52M | B98: 7688 | C98: 7688 | D98: 10112.22322
A99: 62M | B99: 7935 | C99: 7935 | D99: 10438.49769
A100: 72M | B100: 8191 | C100: 8191 | D100: 10775.86993
A101: 82M | B101: 8455 | C101: 8455 | D101: 11124.33995
A102: 92M | B102: 8728 | C102: 8728 | D102: 11485.23947
A103: 102M | B103: 9010 | C103: 9010 | D103: 11858.12458
A104: 112M | B104: 9302 | C104: 9302 | D104: 12243.8831
A105: 122M | B105: 9604 | C105: 9604 | D105: 12642.95895
A106: 132M | B106: 9917 | C106: 9917 | D106: 13056.23995
A107: 142M | B107: 10240 | C107: 10240 | D107: 13482.83828
A108: 152M | B108: 10574 | C108: 10574 | D108: 13924.08566
A109: 162M | B109: 10920 | C109: 10920 | D109: 14380.42601
A110: 172M | B110: 11278 | C110: 11278 | D110: 14853.63497
A111: 182M | B111: 11604 | C111: 11604 | D111: 15284.00654
A112: 192M | B112: 11948 | C112: 11948 | D112: 15738.62673
A113: 202M | B113: 12303 | C113: 12303 | D113: 16206.88554
A114: 212M | B114: 12668 | C114: 12668 | D114: 16689.1921
A115: 222M | B115: 13044 | C115: 13044 | D115: 17185.96787
A116: 232M | B116: 13432 | C116: 13432 | D116: 17697.6469
A117: 242M | B117: 13831 | C117: 13831 | D117: 18224.67631
A118: 252M | B118: 14242 | C118: 14242 | D118: 18767.5166
A119: 262M | B119: 14665 | C119: 14665 | D119: 19326.6421
A120: 272M | B120: 15101 | C120: 15101 | D120: 19902.54136
A121: 282M | B121: 15550 | C121: 15550 | D121: 20495.7176
A122: 292M | B122: 16013 | C122: 16013 | D122: 21106.68913
A123: 302M | B123: 18073 | C123: 16489 | D123: 21735.9898
A124: 312M | B124: 18611 | C124: 16980 | D124: 22384.1695
A125: 322M | B125: 19165 | C125: 17486 | D125: 23051.79458
A126: 332M | B126: 19736 | C126: 18006 | D126: 23739.44842
A127: 342M | B127: 20325 | C127: 18543 | D127: 24447.73187
A128: 352M | B128: 20930 | C128: 19095 | D128: 25177.26383
A129: 362M | B129: 21554 | C129: 19664 | D129: 25928.68174
A130: 372M | B130: 22197 | C130: 20250 | D130: 26702.64219
A131: 382M | B131: 22859 | C131: 20854 | D131: 27499.82146
A132: 392M | B132: 23541 | C132: 21475 | D132: 28320.9161
A133: 402M | B133: 22222 | C133: 22222 | D133: 29307.59817
A134: 412M | B134: 23106 | C134: 23106 | D134: 30474.70209
A135: 422M | B135: 24025 | C135: 24025 | D135: 31688.49018
A136: 432M | B136: 24981 | C136: 24981 | D136: 32950.82978
A137: 442M | B137: 25975 | C137: 25975 | D137: 34263.66298
A138: 452M | B138: 27009 | C138: 27009 | D138: 35629.0095
A139: 462M | B139: 28084 | C139: 28084 | D139: 37048.96987
A140: 472M | B140: 29202 | C140: 29202 | D140: 38525.72867
A141: 482M | B141: 30365 | C141: 30365 | D141: 40061.55782
A142: 492M | B142: 31574 | C142: 31574 | D142: 41658.82013
A143: 502M | B143: 32832 | C143: 32832 | D143: 43319.97293
A144: 512M | B144: 34304 | C144: 34304 | D144: 45263.52172
A145: 522M | B145: 36013 | C145: 36013 | D145: 47520.1978
A146: 532M | B146: 37807 | C146: 37807 | D146: 49889.70769
A147: 542M | B147: 39690 | C147: 39690 | D147: 52377.69308
A148: 552M | B148: 41669 | C148: 41669 | D148: 54990.07773
A149: 562M | B149: 43745 | C149: 43745 | D149: 57733.08162
A150: 572M | B150: 45926 | C150: 45926 | D150: 60613.2357
A151: 582M | B151: 48216 | C151: 48216 | D151: 63637.39748
A152: 592M | B152: 50620 | C152: 50620 | D152: 66812.76736
A153: 602M | B153: 58275 | C153: 53145 | D153: 70146.90573
A154: 612M | B154: 61473 | C154: 56061 | D154: 73997.83554
A155: 622M | B155: 65154 | C155: 59417 | D155: 78429.90567
A156: 632M | B156: 69055 | C156: 62974 | D156: 83127.90001
A157: 642M | B157: 73191 | C157: 66744 | D157: 88107.77401
A158: 652M | B158: 77575 | C158: 70741 | D158: 93386.44045
A159: 662M | B159: 82221 | C159: 74978 | D159: 98981.82688
A160: 672M | B160: 87147 | C160: 79469 | D160: 104912.9365
A161: 682M | B161: 92368 | C161: 84229 | D161: 111199.9127
A162: 692M | B162: 97902 | C162: 89275 | D162: 117864.1074
A163: 702M | B163: 103768 | C163: 94624 | D163: 124928.1539
A164: 712M | B164: 109987 | C164: 100293 | D164: 132416.0431
A165: 722M | B165: 116578 | C165: 106303 | D165: 140353.2057
A166: 732M | B166: 123565 | C166: 112673 | D166: 148766.5981
A167: 742M | B167: 130971 | C167: 119426 | D167: 157684.7939
A168: 752M | B168: 138821 | C168: 126584 | D168: 167138.0816
A169: 762M | B169: 147143 | C169: 134171 | D169: 177158.5665
A170: 772M | B170: 155964 | C170: 142214 | D170: 187780.2805
A171: 782M | B171: 165314 | C171: 150739 | D171: 199039.2973
A172: 792M | B172: 175225 | C172: 159775 | D172: 210973.8551
A173: 802M | B173: 185730 | C173: 169354 | D173: 223624.4864
A174: 812M | B174: 196866 | C174: 179507 | D174: 237034.1556
A175: 822M | B175: 208670 | C175: 190270 | D175: 251248.405
A176: 832M | B176: 221183 | C176: 201678 | D176: 266315.5093
A177: 842M | B177: 234446 | C177: 213771 | D177: 282286.6398
A179: 03M | B179: 12053 | C179: 12053 | D179: 15876.8648
A180: 13M | B180: 10744 | C180: 10744 | D180: 14147.51817
A181: 23M | B181: 9331 | C181: 9331 | D181: 12282.07447
A182: 33M | B182: 8722 | C182: 8722 | D182: 11477.0338
A183: 43M | B183: 8060 | C183: 8060 | D183: 10603.22323
A184: 53M | B184: 8318 | C184: 8318 | D184: 10944.18729
A185: 63M | B185: 8586 | C185: 8586 | D185: 11297.65497
A186: 73M | B186: 8863 | C186: 8863 | D186: 11663.14536
A187: 83M | B187: 9148 | C187: 9148 | D187: 12040.65845
A188: 93M | B188: 9444 | C188: 9444 | D188: 12431.63699
A189: 103M | B189: 9750 | C189: 9750 | D189: 12835.60005
A190: 113M | B190: 10067 | C190: 10067 | D190: 13253.50945
A191: 123M | B191: 10394 | C191: 10394 | D191: 13685.84611
A192: 133M | B192: 10733 | C192: 10733 | D192: 14133.57183
A193: 143M | B193: 11083 | C193: 11083 | D193: 14595.72481
A194: 153M | B194: 11445 | C194: 11445 | D194: 15073.74776
A195: 163M | B195: 11819 | C195: 11819 | D195: 15568.1216
A196: 173M | B196: 12207 | C196: 12207 | D196: 16080.76996
A197: 183M | B197: 12561 | C197: 12561 | D197: 16547.01066
A198: 193M | B198: 12933 | C198: 12933 | D198: 17039.52098
A199: 203M | B199: 13318 | C199: 13318 | D199: 17546.80661
A200: 213M | B200: 13713 | C200: 13713 | D200: 18069.3108
A201: 223M | B201: 14121 | C201: 14121 | D201: 18607.49013
A202: 233M | B202: 14540 | C202: 14540 | D202: 19161.81483
... 146 more rows

Sheet Brochure

Sheet Template PDF
B15: Cotización
B17: Datos Titular
B18: Nombre del titular: | C18: ='Datos Asegurado'!C7 -> Usuario | D18: Nombre Agente: | E18: ='Datos Asegurado'!C16 -> Maria
B19: Edad: | C19: ='Datos Asegurado'!C8 -> 45 | D19: Agencia: | E19: ='Datos Asegurado'!C17 -> Bupa Mex
B20: Género: | C20: ='Datos Asegurado'!C9 -> Femenino | D20: ='Datos Asegurado'!B6 -> Fecha Cotización: | E20: ='Datos Asegurado'!C6 -> 2022-01-19
B21: Zona residencia: | C21: ='Datos Asegurado'!D27 -> Zona 1: CDMX, Area Metropolitana y Monterrey
B22: Número de integrantes a cotizar: | C22: ='Datos Asegurado'!C11 -> 0
B24: Características de la Póliza
B26: Suma asegurada (mxn): | C26: ='Datos Asegurado'!B26 -> $ 1,000,000 MNX
B27: Deducible (mxn): | C27: ='Datos Asegurado'!D25 -> 10000
B28: Coaseguro | C28: ='Datos Asegurado'!D26 -> 0.2
B29: Tipo de cliente: | C29: =+'Datos Asegurado'!B22 -> Nuevo negocio
B30: Asistencia en el extranjero: | C30: ='Datos Asegurado'!D24 -> No
B31: Costo Poliza
B33: Concepto | C33: Anual | D33: Semestral | E33: Trimestral | F33: Mensual
B34: Prima del asegurado titular: | C34: ='Datos Asegurado'!C32 -> 23781 | D34: ='Datos Asegurado'!D32 -> 24851.145 | E34: ='Datos Asegurado'!E32 -> 25564.575 | F34: ='Datos Asegurado'!F32 -> 26396.91
B35: Prima cónyuge: | C35: ='Datos Asegurado'!C33 -> 0 | D35: ='Datos Asegurado'!D33 -> 0 | E35: ='Datos Asegurado'!E33 -> 0 | F35: ='Datos Asegurado'!F33 -> 0
B36: Prima hijo(s): | C36: ='Datos Asegurado'!C34 -> 0 | D36: ='Datos Asegurado'!D34 -> 0 | E36: ='Datos Asegurado'!E34 -> 0 | F36: ='Datos Asegurado'!F34 -> 0
B37: Dependientes económicos | C37: ='Datos Asegurado'!C35 -> 0 | D37: ='Datos Asegurado'!D35 -> 0 | E37: ='Datos Asegurado'!E35 -> 0 | F37: ='Datos Asegurado'!F35 -> 0
B38: Total Prima: | C38: ='Datos Asegurado'!C36 -> 23781 | D38: ='Datos Asegurado'!D36 -> 24851.145 | E38: ='Datos Asegurado'!E36 -> 25564.575 | F38: ='Datos Asegurado'!F36 -> 26396.91
B39: Asistencia en el extranjero: | C39: ='Datos Asegurado'!C37 -> 0 | D39: ='Datos Asegurado'!D37 -> 0 | E39: ='Datos Asegurado'!E37 -> 0 | F39: ='Datos Asegurado'!F37 -> 0
B40: Derecho de póliza: | C40: ='Datos Asegurado'!C38 -> 1500 | D40: ='Datos Asegurado'!D38 -> 1500 | E40: ='Datos Asegurado'!E38 -> 1500 | F40: ='Datos Asegurado'!F38 -> 1500
B41: Total descuento (derecho de póliza y recargo por pago fraccionado) | C41: ='Datos Asegurado'!C39 -> -1500 | D41: ='Datos Asegurado'!D39 -> -2570.145 | E41: ='Datos Asegurado'!E39 -> -3283.575 | F41: ='Datos Asegurado'!F39 -> -4115.91
B42: IVA (16%) | C42: ='Datos Asegurado'!C40 -> 3804.96 | D42: ='Datos Asegurado'!D40 -> 1816.8684 | E42: ='Datos Asegurado'!E40 -> 737.211 | F42: ='Datos Asegurado'!F40 -> -66.5868
B43: Total a pagar: | C43: ='Datos Asegurado'!C41 -> 27585.96 | D43: ='Datos Asegurado'!D41 -> 27585.96 | E43: ='Datos Asegurado'!E41 -> 27585.96 | F43: ='Datos Asegurado'!F41 -> 27585.96
B44: Primer Pago: | C44: ='Datos Asegurado'!C42 -> 27585.96 | D44: ='Datos Asegurado'!D42 -> 13792.98 | E44: ='Datos Asegurado'!E42 -> 6896.49 | F44: ='Datos Asegurado'!F42 -> 2298.83
B45: Pagos Subsecuentes: | C45: ='Datos Asegurado'!C43 -> 0 | D45: ='Datos Asegurado'!D43 -> 13792.98 | E45: ='Datos Asegurado'!E43 -> 6896.49 | F45: ='Datos Asegurado'!F43 -> 2298.83
B47: Tarifas expresadas en $MXN – Válidas a partir del 27 de agosto del 2021
B48: La presente cotización es de carácter informativo, no constituye una solicitud de seguro y/o el monto de la prima definitiva y/o las condiciones de la misma y/o una oferta de aseguramiento en términos del artículo 5to de la Ley Sobre el Contrato de Seguro. La emisión de la póliza así como posibles cambios en la tarifa están sujetos a valoración del riesgo de acuerdo con las políticas de Suscripción de Bupa México y es susceptible de modificaciones, por lo que Bupa podrá aceptar o negar el aseguramiento del riesgo propuesto.

Sheet Objetos Estructura (hidden)
A1: Estructuras Maestras
A3: Estructura asegurado
B4: Seleccione una opción | C4: Masculino | D4: 18

Sheet Master (hidden)
A1: Datos Maestros | R1: Prima Base | AC1: Prima Riesgo Nuevo NN Eliminacion periodos de espera | AE1: Prima Tarifa Nuevo Producto NN Eliminacion periodos de espera | AG1: Prima Tarifa Nuevo Producto Ren Eliminacion periodos de espera | AI1: Tarifa Base, elimación | AJ1: Aceptación Periodos de Espera | AK1: Bupa Internacional | AM1: Descuento nuevo negocio | AN1: Asistencia en el extranjero | AO1: Asistencia Extranjero Valor
A2: Genero | B2: Lugares de residencia | C2: Zona | D2: FD Zona | E2: Parentezco | F2: Dias | G2: Meses | H2: Años | I2: Tipo Cliente | J2: Factor descuento | K2: Sumas aseguradas | L2: FD Suma asegurada | M2: Deducibles | N2: Maternidad Aplica | O2: FD Deducible | P2: Coasegurado | Q2: FD Coasegurado | R2: Edad | S2: 40000 | T2: Factor es mujer | U2: Administración | V2: Factor descuento | X2: Recargos | Y2: NN | Z2: Renovacion | AA2: Transfer | AB2: Seguro dental | AC2: Edad | AD2: Valor | AE2: Edad | AF2: Valor | AG2: Edad | AH2: Valor | AI2: Valor | AJ2: Valor | AK2: Valor | AM2: Si | AN2: Si | AO2: 1632
A3: Masculino | B3: Aguascalientes | C3: Zona 2 | D3: 0.8 | E3: Seleccione una opción | F3: 01 | G3: 01 | H3: 1946 | I3: Nuevo negocio - con periodos de espera | J3: 0.89 | K3: 5000000 | L3: 0.87262 | M3: 9000 | N3: Si | O3: 1.1146 | P3: 0 | Q3: 1 | R3: 0 | S3: 16257.969 | T3: 2600 | U3: 1500 | V3: Tipo cliente | W3: =VLOOKUP('Datos Asegurado'!#REF!,Master!I3:J5,2,FALSE) ->  | X3: Administracion | Y3: 0.15 | Z3: 0.15 | AA3: 0.15 | AB3: 400 | AC3: =R3 -> 0 | AD3: =S3*$W$14+$AB$3 ->  | AE3: =AC3 -> 0 | AF3: =AD3/(1-SUM($Y$3:$Y$5)) ->  | AG3: =AE3 -> 0 | AH3: =AD3/(1-SUM($Z$3:$Z$5)) ->  | AI3: =AF3 ->  | AJ3: =AI3*90% ->  | AK3: =AI3 ->  | AM3: No | AN3: No
A4: Femenino | B4: Baja California Norte | C4: Zona 1 | D4: 1 | E4: Cónyuge | F4: 02 | G4: 02 | H4: 1947 | I4: Nuevo negocio - reconocimiento de antigüedad | J4: 0.95 | K4: 10000000 | L4: 0.91165 | M4: 17000 | N4: Si | O4: 1.07892 | P4: 0.1 | Q4: 0.94257 | R4: 1 | S4: 14413.02784 | V4: Zona | W4: =VLOOKUP('Datos Asegurado'!#REF!,Master!B3:D35,3,FALSE) ->  | X4: Adquisicion | Y4: 0.2 | Z4: 0.17 | AA4: 0.09 | AC4: 1 | AD4: =S4*$W$14+$AB$3 ->  | AE4: =AC4 -> 1 | AF4: =AD4/(1-SUM($Y$3:$Y$5)) ->  | AG4: =AE4 -> 1 | AH4: =AD4/(1-SUM($Z$3:$Z$5)) ->  | AI4: =AF4 ->  | AJ4: =AI4*90% ->  | AK4: =AI4 -> 
B5: Baja California Sur | C5: Zona 1 | D5: 1 | E5: Hij@ | F5: 03 | G5: 03 | H5: 1948 | I5: Transfer Bupa Internacional | J5: 1 | K5: 20000000 | L5: 0.95067 | M5: 35000 | N5: Si | O5: 1.01542 | P5: 0.2 | Q5: 0.91091 | R5: 2 | S5: 12422.51997 | V5: Suma asegurada | W5: =VLOOKUP('Datos Asegurado'!#REF!,Master!K3:L6,2,FALSE) ->  | X5: Utilidad | Y5: 0.04 | Z5: 0.04 | AA5: 0.04 | AC5: 2 | AE5: 2 | AG5: 2
B6: Campeche | C6: Zona 2 | D6: 0.8 | E6: Dependiente económico | F6: 04 | G6: 04 | H6: 1949 | K6: 50000000 | L6: 1 | M6: 55000 | N6: No | O6: 0.95747 | R6: 3 | S6: 11563.46358 | V6: Deducible | W6: =VLOOKUP('Datos Asegurado'!#REF!,Master!M3:O11,3,FALSE) ->  | X6: Total | Y6: =SUM(Y3:Y5) -> 0.39 | Z6: =SUM(Z3:Z5) -> 0.36 | AA6: =SUM(AA3:AA5) -> 0.28 | AC6: 3 | AE6: 3 | AG6: 3
B7: Coahuila | C7: Zona 2 | D7: 0.8 | F7: 05 | G7: 05 | H7: 1950 | M7: 115000 | N7: No | O7: 0.82317 | R7: 4 | S7: 10630.92706 | V7: Coasegurado | W7: =VLOOKUP('Datos Asegurado'!#REF!,Master!P3:Q7,2,FALSE) ->  | X7: 1-Total | Y7: =1-Y6 -> 0.61 | Z7: =1-Z6 -> 0.64 | AA7: =1-AA6 -> 0.72 | AC7: 4 | AE7: 4 | AG7: 4
B8: Colima | C8: Zona 2 | D8: 0.8 | F8: 06 | G8: 06 | H8: 1951 | R8: 5 | S8: 10995.29441 | V8: Cobertura Extranjero: (no) | W8: 0.85493 | AC8: 5 | AE8: 5 | AG8: 5
B9: Chiapas | C9: Zona 2 | D9: 0.8 | F9: 07 | G9: 07 | H9: 1952 | R9: 6 | S9: 11372.15019 | V9: Reducción Honorarios: (Reducido) | W9: 0.9 | AC9: 6 | AE9: 6 | AG9: 6
B10: Chihuahua | C10: Zona 2 | D10: 0.8 | F10: 08 | G10: 08 | H10: 1953 | R10: 7 | S10: 11761.92243 | V10: Copago Medicamentos: (0) | W10: 1 | AC10: 7 | AE10: 7 | AG10: 7
B11: Ciudad de México y área metropolitana | C11: Zona 1 | D11: 1 | F11: 09 | G11: 09 | H11: 1954 | R11: 8 | S11: 12165.05382 | V11: Reduccion a Consultas: (25) | W11: 0.98 | AC11: 8 | AE11: 8 | AG11: 8
B12: Estado de México | C12: Zona 2 | D12: 0.8 | F12: 10 | G12: 10 | H12: 1955 | R12: 9 | S12: 12582.00226 | V12: Re. Renuncia utilidad: (Si) | W12: 0.95 | AC12: 9 | AE12: 9 | AG12: 9
B13: Durango | C13: Zona 2 | D13: 0.8 | F13: 11 | G13: 11 | H13: 1956 | R13: 10 | S13: 13013.2413 | V13: Re. Adicional Actuarial: (Si) | W13: 0.95 | AC13: 10 | AE13: 10 | AG13: 10
B14: Guanajuato | C14: Zona 2 | D14: 0.8 | F14: 12 | G14: 12 | H14: 1957 | R14: 11 | S14: 13459.26075 | V14: Factor descuento sin tipo cliente | W14: =W5*W6*W7*W8*W9*W10*W11*W12*W13*W4 ->  | AC14: 11 | AE14: 11 | AG14: 11
B15: Guerrero | C15: Zona 2 | D15: 0.8 | F15: 13 | H15: 1958 | R15: 12 | S15: 13920.56719 | V15: Factor descuento con tipo cliente | W15: =W3*W4*W5*W6*W7*W8*W9*W10*W11*W12*W13 ->  | AC15: 12 | AE15: 12 | AG15: 12
B16: Hidalgo | C16: Zona 2 | D16: 0.8 | F16: 14 | H16: 1959 | R16: 13 | S16: 14397.68458 | AC16: 13 | AE16: 13 | AG16: 13
B17: Jalisco | C17: Zona 1 | D17: 1 | F17: 15 | H17: 1960 | R17: 14 | S17: 14891.15482 | AC17: 14 | AE17: 14 | AG17: 14
B18: Michoacán | C18: Zona 2 | D18: 0.8 | F18: 16 | H18: 1961 | R18: 15 | S18: 15401.5384 | AC18: 15 | AE18: 15 | AG18: 15
B19: Morelos | C19: Zona 2 | D19: 0.8 | F19: 17 | H19: 1962 | R19: 16 | S19: 15929.41501 | AC19: 16 | AE19: 16 | AG19: 16
B20: Nayarit | C20: Zona 2 | D20: 0.8 | F20: 18 | H20: 1963 | R20: 17 | S20: 16475.38421 | AC20: 17 | AE20: 17 | AG20: 17
B21: Nuevo León | C21: Zona 1 | D21: 1 | F21: 19 | H21: 1964 | R21: 18 | S21: 16973.02601 | AC21: 18 | AE21: 18 | AG21: 18
B22: Oaxaca | C22: Zona 2 | D22: 0.8 | F22: 20 | H22: 1965 | R22: 19 | S22: 17712.20798 | AC22: 19 | AE22: 19 | AG22: 19
B23: Puebla | C23: Zona 2 | D23: 0.8 | F23: 21 | H23: 1966 | R23: 20 | S23: 18521.78824 | AC23: 20 | AE23: 20 | AG23: 20
B24: Querétaro | C24: Zona 2 | D24: 0.8 | F24: 22 | H24: 1967 | R24: 21 | S24: 19331.36849 | AC24: 21 | AE24: 21 | AG24: 21
B25: Quintana Roo zona 1 | C25: Zona 1 | D25: 1 | F25: 23 | G25: s | H25: 1968 | R25: 22 | S25: 20091.66995 | AC25: 22 | AE25: 22 | AG25: 22
B26: Quintana Roo zona 2 | C26: Zona 2 | D26: 0.8 | F26: 24 | H26: 1969 | R26: 23 | S26: 20957.56883 | AC26: 23 | AE26: 23 | AG26: 23
B27: San Luis Potosí | C27: Zona 2 | D27: 0.8 | F27: 25 | H27: 1970 | R27: 24 | S27: 21767.14908 | AC27: 24 | AE27: 24 | AG27: 24
B28: Sinaloa | C28: Zona 2 | D28: 0.8 | F28: 26 | H28: 1971 | R28: 25 | S28: 22330.33534 | AC28: 25 | AE28: 25 | AG28: 25
B29: Sonora | C29: Zona 1 | D29: 1 | F29: 27 | H29: 1972 | R29: 26 | S29: 23196.23422 | AC29: 26 | AE29: 26 | AG29: 26
B30: Tabasco | C30: Zona 2 | D30: 0.8 | F30: 28 | H30: 1973 | R30: 27 | S30: 24033.97379 | AC30: 27 | AE30: 27 | AG30: 27
B31: Tamaulipas | C31: Zona 2 | D31: 0.8 | F31: 29 | H31: 1974 | R31: 28 | S31: 24899.87267 | AC31: 28 | AE31: 28 | AG31: 28
B32: Tlaxcala | C32: Zona 2 | D32: 0.8 | F32: 30 | H32: 1975 | R32: 29 | S32: 25962.88674 | AC32: 29 | AE32: 29 | AG32: 29
B33: Veracruz | C33: Zona 2 | D33: 0.8 | F33: 31 | H33: 1976 | R33: 30 | S33: 28307.93177 | AC33: 30 | AE33: 30 | AG33: 30
B34: Yucatán | C34: Zona 2 | D34: 0.8 | H34: 1977 | R34: 31 | S34: 29506.42342 | AC34: 31 | AE34: 31 | AG34: 31
B35: Zacatecas | C35: Zona 2 | D35: 0.8 | H35: 1978 | R35: 32 | S35: 30690.20966 | AC35: 32 | AE35: 32 | AG35: 32
H36: 1979 | R36: 33 | S36: 31513.71313 | AC36: 33 | AE36: 33 | AG36: 33
H37: 1980 | R37: 34 | S37: 32396.03828 | AC37: 34 | AE37: 34 | AG37: 34
H38: 1981 | R38: 35 | S38: 33212.18904 | AC38: =R38 -> 35 | AE38: 35 | AG38: 35
H39: 1982 | R39: 36 | S39: 34065.10334 | AC39: 36 | AE39: 36 | AG39: 36
H40: 1983 | R40: 37 | S40: 34918.01765 | AC40: 37 | AE40: 37 | AG40: 37
H41: 1984 | R41: 38 | S41: 35734.16841 | AC41: 38 | AE41: 38 | AG41: 38
H42: 1985 | R42: 39 | S42: 36851.78026 | AC42: 39 | AE42: 39 | AG42: 39
H43: 1986 | R43: 40 | S43: 37866.45418 | AC43: 40 | AE43: 40 | AG43: 40
H44: 1987 | R44: 41 | S44: 38866.42268 | AC44: 41 | AE44: 41 | AG44: 41
H45: 1988 | R45: 42 | S45: 39881.0966 | AC45: 42 | AE45: 42 | AG45: 42
H46: 1989 | R46: 43 | S46: 41042.82471 | AC46: 43 | AE46: 43 | AG46: 43
H47: 1990 | R47: 44 | S47: 42241.31636 | AC47: 44 | AE47: 44 | AG47: 44
H48: 1991 | R48: 45 | S48: 43879.64085 | AC48: 45 | AE48: 45 | AG48: 45
H49: 1992 | R49: 46 | S49: 45128.03707 | AC49: 46 | AE49: 46 | AG49: 46
H50: 1993 | R50: 47 | S50: 46316.98584 | AC50: 47 | AE50: 47 | AG50: 47
H51: 1994 | R51: 48 | S51: 48598.28131 | AC51: 48 | AE51: 48 | AG51: 48
H52: 1995 | R52: 49 | S52: 50188.5003 | AC52: 49 | AE52: 49 | AG52: 49
H53: 1996 | R53: 50 | S53: 52090.97479 | AC53: 50 | AE53: 50 | AG53: 50
H54: 1997 | R54: 51 | S54: 53427.60352 | AC54: 51 | AE54: 51 | AG54: 51
H55: 1998 | R55: 52 | S55: 55865.80894 | AC55: 52 | AE55: 52 | AG55: 52
H56: 1999 | R56: 53 | S56: 59037.32981 | AC56: 53 | AE56: 53 | AG56: 53
H57: 2000 | R57: 54 | S57: 62777.90346 | AC57: 54 | AE57: 54 | AG57: 54
H58: 2001 | R58: 55 | S58: 67440.85106 | AC58: 55 | AE58: 55 | AG58: 55
H59: 2002 | R59: 56 | S59: 72945.2928 | AC59: 56 | AE59: 56 | AG59: 56
H60: 2003 | R60: 57 | S60: 76482.18076 | AC60: 57 | AE60: 57 | AG60: 57
H61: 2004 | R61: 58 | S61: 82089.63865 | AC61: 58 | AE61: 58 | AG61: 58
H62: 2005 | R62: 59 | S62: 87834.06032 | AC62: 59 | AE62: 59 | AG62: 59
H63: 2006 | R63: 60 | S63: 94150.50714 | AC63: 60 | AE63: 60 | AG63: 60
H64: 2007 | R64: 61 | S64: 100587.8044 | AC64: 61 | AE64: 61 | AG64: 61
H65: 2008 | R65: 62 | S65: 107226.5189 | AC65: 62 | AE65: 62 | AG65: 62
H66: 2009 | R66: 63 | S66: 116830.0962 | AC66: 63 | AE66: 63 | AG66: 63
H67: 2010 | R67: 64 | S67: 127859.7081 | AC67: 64 | AE67: 64 | AG67: 64
H68: 2011 | R68: 65 | S68: 138163.3572 | AC68: 65 | AD68: =S68*$W$14+$AB$3 ->  | AE68: =AC68 -> 65 | AF68: =AD68/(1-SUM($Y$3:$Y$5)) ->  | AG68: =AE68 -> 65 | AH68: =AD68/(1-SUM($Z$3:$Z$5)) ->  | AI68: =AF68 ->  | AJ68: =AI68*90% ->  | AK68: =AI68 -> 
H69: 2012 | R69: 66 | S69: 147274.4594 | AC69: 66 | AE69: 66 | AG69: 66
H70: 2013 | R70: 67 | S70: 156556.3948 | AC70: 67 | AE70: 67 | AG70: 67
H71: 2014 | R71: 68 | S71: 169084.1603 | AC71: 68 | AE71: 68 | AG71: 68
H72: 2015 | R72: 69 | S72: 181864.1082 | AC72: 69 | AE72: 69 | AG72: 69
H73: 2016 | R73: 70 | S73: 194701.0004 | AC73: 70 | AE73: 70 | AG73: 70
H74: 2017 | R74: 71 | S74: 207668.0512 | AC74: 71 | AE74: 71 | AG74: 71
H75: 2018 | R75: 72 | S75: 220740.8559 | AC75: 72 | AE75: 72 | AG75: 72
H76: 2019 | R76: 73 | S76: 236189.0551 | AC76: 73 | AE76: 73 | AG76: 73
H77: 2020 | R77: 74 | S77: 251767.413 | AC77: 74 | AE77: 74 | AG77: 74
H78: 2021 | R78: 75 | S78: 267500.3341 | AC78: 75 | AE78: 75 | AG78: 75
R79: 76 | S79: 283379.6837 | AC79: 76 | AE79: 76 | AG79: 76
R80: 77 | S80: 299372.922 | AC80: 77 | AE80: 77 | AG80: 77
R81: 78 | S81: 315813.5806 | AC81: 78 | AE81: 78 | AG81: 78
R82: 79 | S82: 332441.3421 | AC82: 79 | AE82: 79 | AG82: 79
R83: 80 | S83: 349264.3416 | AC83: 80 | AE83: 80 | AG83: 80
R84: 81 | S84: 366062.9363 | AC84: 81 | AE84: 81 | AG84: 81
R85: 82 | S85: 383138.118 | AC85: 82 | AE85: 82 | AG85: 82
R86: 83 | S86: 400359.7282 | AC86: 83 | AE86: 83 | AG86: 83
R87: 84 | S87: 417573.2035 | AC87: 84 | AE87: 84 | AG87: 84
